lending/lending_fUSD_20260306
["ID","MTS","AMOUNT","RATE_DAILY","PERIOD"]
[407793638,1772805041630,-500.0,0.00019809,2]
[407793639,1772805041640,-399.21,0.0001981,2]
[407793640,1772805041650,-209.68475892,0.00019899,2]
[407793641,1772805041660,-1000.0,0.000199,7]
[407793642,1772805041670,-1000.0,0.000199,7]
[407793643,1772805041680,-1000.0,0.000199,7]
[407793644,1772805041690,-1000.0,0.000199,7]
[407793645,1772805041699,-1000.0,0.000199,7]
[407793646,1772805041709,-1000.0,0.000199,7]
[407793647,1772805041718,-1000.0,0.000199,7]
[407793648,1772805041729,-1000.0,0.000199,7]
[407793649,1772805041739,-1000.0,0.000199,7]
[407793650,1772805041748,-1000.0,0.000199,7]
[407793651,1772805041758,-1000.0,0.000199,7]
[407793652,1772805041768,-1000.0,0.000199,7]
[407793653,1772805041777,-1000.0,0.000199,7]
[407793654,1772805041787,-1000.0,0.000199,7]
[407793655,1772805042219,-1000.0,0.000199,7]
[407793656,1772805042238,-1000.0,0.000199,7]
[407793657,1772805042248,-1000.0,0.000199,7]
[407793658,1772805042257,-1000.0,0.000199,7]
[407793659,1772805042267,-1000.0,0.000199,7]
[407793660,1772805042276,-1000.0,0.000199,7]
[407793661,1772805042285,-172.74325605,0.000199,7]
[407793662,1772805042295,-2803.0,0.00019983,2]
[407793663,1772805042304,-300.0,0.00019999,2]
[407793664,1772805042313,-333.11,0.0002,7]
[407793665,1772805042322,-290.35736663,0.0002,120]
[407793666,1772805042332,-9900.03,0.0002,30]
[407793667,1772805042341,-161.01699525,0.00020005,2]
[407793668,1772805042352,-153.82,0.0002003,2]
[407793669,1772805042362,-900.0,0.0002019,2]
[407793670,1772805042372,-153.82,0.000203,2]
[407793671,1772805042382,-168.0,0.00020461,2]
[407793672,1772805042391,-168.0,0.00020461,2]
[407793673,1772805042401,-200.0,0.00020479,2]
[407793674,1772805042410,-500.0,0.00020501,2]
[407793675,1772805042420,-168.0,0.00020514,2]
[407793676,1772805042429,-8077.248381,0.0002052,7]
[407793677,1772805042438,-168.0,0.00020538,2]
[407793678,1772805042451,-324.75878306,0.00020564,2]
[407793679,1772805042461,-153.82,0.0002057,2]
[407793680,1772805042471,-168.0,0.00020705,2]
[407793681,1772805042481,-4327.097348,0.00020731,7]
[407793682,1772805042490,-399.21,0.000208,2]
[407793683,1772805042499,-153.25442737,0.00020839,2]
[407793684,1772805042509,-153.82,0.0002084,2]
[407793685,1772805042519,-168.0,0.00020894,2]
[407793686,1772805042530,-9999.99,0.00020951,2]
[407793687,1772805042540,-5000.0,0.00021,7]
[407793688,1772805042549,-400.0,0.00021,2]
[407793689,1772805042559,-3581.26334819,0.00021076,7]
[407793690,1772805042568,-168.0,0.00021093,2]
[407793691,1772805042578,-168.0,0.00021105,2]
[407793692,1772805042587,-153.82,0.0002111,2]
[407793693,1772805042597,-500.0,0.00021116,2]
[407793694,1772805042607,-168.0,0.00021166,2]
[407793695,1772805042616,-168.0,0.00021169,2]
[407793696,1772805042626,-4609.0,0.00021374,2]
[407793697,1772805042635,-153.82,0.0002138,2]
[407793698,1772805042645,-168.0,0.00021422,2]
[407793699,1772805042655,-900.0,0.0002156,2]
[407793700,1772805042664,-9674.377048,0.00021596,7]
[407793701,1772805042675,-153.82,0.0002165,2]
[407793702,1772805042684,-500.0,0.00021749,2]
[407793703,1772805042693,-399.21,0.00021791,2]
[407793704,1772805042703,-780.83,0.00021901,2]
[407793705,1772805042712,-5000.0,0.00021918,2]
[407793706,1772805042722,-219.68,0.00021918,2]
[407793707,1772805042732,-153.81,0.0002192,2]
[407793708,1772805042741,-5000.0,0.00022,7]
[407793709,1772805042751,-353.09,0.00022,30]
[407793710,1772805042760,-11400.34013754,0.00022007,2]
[407793711,1772805042770,-9609.26385439,0.00022086,2]
[407793713,1772805042779,-4146.161593,0.00022113,30]
[407793715,1772805042788,-153.25442737,0.00022141,2]
[407793716,1772805042797,-557.78,0.00022175,2]
[407793718,1772805042806,-2803.0,0.00022195,2]
[407793720,1772805042816,-500.0,0.00022402,2]
[407793722,1772805042826,-162.31,0.00022431,2]
[407793723,1772805042835,-500.0,0.00022468,2]
[407793725,1772805042845,-500.0,0.00022468,2]
[407793727,1772805042854,-4932.11,0.0002274,2]
[407793728,1772805042864,-399.21,0.00022781,2]
[407793729,1772805042873,-5000.0,0.00023,7]
[407793730,1772805042883,-450.0,0.00023,2]
[407793731,1772805042896,-172.74325605,0.00023,7]
[407793732,1772805042905,-1000.0,0.00023016,2]
[407793733,1772805042915,-1000.0,0.00023016,2]
[407793734,1772805042924,-500.0,0.00023074,2]
[407793735,1772805042934,-500.0,0.00023091,2]
[407793736,1772805042944,-184.94185274,0.00023113,2]
[407793737,1772805042954,-500.0,0.0002314,2]
[407793738,1772805042964,-500.0,0.0002314,2]
[407793739,1772805042974,-792.49,0.00023207,2]
[407793740,1772805042984,-2557.48,0.00023236,2]
[407793741,1772805042993,-153.25442737,0.00023444,2]
[407793742,1772805043002,-5271.0,0.00023512,2]
[407793743,1772805043012,-1000.0,0.00023564,2]
[407793744,1772805043021,-1500.0,0.00023564,2]
[407793745,1772805043030,-947.82132409,0.00023579,2]
[407793746,1772805043041,-1000.0,0.00023639,2]
[407793747,1772805043050,-1000.0,0.00023688,2]
[407793748,1772805043059,-1000.0,0.00023688,2]
[407793749,1772805043069,-441.81,0.000237,2]
[407793750,1772805043079,-500.0,0.00023766,2]
[407793751,1772805043089,-399.21,0.00023772,2]
[407793752,1772805043100,-6370.74601581,0.00023923,2]
[407793753,1772805043111,-252.67365585,0.00023923,2]
[407793754,1772805043121,-174.61919141,0.00023923,2]
[407793755,1772805043131,-250.0,0.00023923,2]
[407793756,1772805043141,-721.12765535,0.00023923,2]
[407793757,1772805043151,-1000.0,0.00023923,2]
[407793758,1772805043161,-250.0,0.00023923,2]
[407793759,1772805043173,-1000.0,0.00023923,2]
[407793760,1772805043182,-250.0,0.00023923,2]
[407793761,1772805043191,-1000.0,0.00023923,2]
[407793762,1772805043200,-250.0,0.00023923,2]
[407793763,1772805043212,-1000.0,0.00023923,2]
[407793764,1772805043222,-250.0,0.00023923,2]
[407793765,1772805043231,-1000.0,0.00023923,2]
[407793766,1772805043242,-250.0,0.00023923,2]
[407793767,1772805043252,-1000.0,0.00023923,2]
[407793768,1772805043264,-1000.0,0.00023923,2]
[407793769,1772805043275,-250.0,0.00023923,2]
[407793770,1772805043287,-1000.0,0.00023923,2]
[407793771,1772805043298,-1000.0,0.00023923,2]
[407793772,1772805043308,-250.0,0.00023923,2]
[407793773,1772805043318,-1000.0,0.00023923,2]
[407793774,1772805043327,-1000.0,0.00023923,2]
[407793775,1772805043336,-250.0,0.00023923,2]
[407793776,1772805043346,-1000.0,0.00023923,2]
[407793777,1772805043355,-1000.0,0.00023923,2]
[407793778,1772805043364,-250.0,0.00023923,2]
[407793779,1772805043373,-1000.0,0.00023923,2]
[407793780,1772805043382,-250.0,0.00023923,2]
[407793781,1772805043391,-1000.0,0.00023923,2]
[407793782,1772805043401,-1000.0,0.00023923,2]
[407793783,1772805043411,-1000.0,0.00023923,2]
[407793784,1772805043420,-1000.0,0.00023923,2]
[407793785,1772805043429,-1000.0,0.00023923,2]
[407793786,1772805043439,-500.0,0.00023923,2]
[407793787,1772805043448,-1000.0,0.00023923,2]
[407793788,1772805043457,-500.0,0.00023923,2]
[407793789,1772805043466,-1000.0,0.00023923,2]
[407793790,1772805043477,-1000.0,0.00023923,2]
[407793791,1772805043486,-500.0,0.00023923,2]
[407793792,1772805043495,-4000.0,0.00023923,2]
[407793793,1772805043505,-500.0,0.00023923,2]
[407793794,1772805043515,-938.21883186,0.00023923,2]
[407793795,1772805043524,-4000.0,0.00023923,2]
[407793796,1772805043533,-500.0,0.00023923,2]
[407793797,1772805043544,-4000.0,0.00023923,2]
[407793798,1772805043553,-500.0,0.00023923,2]
[407793799,1772805043563,-4000.0,0.00023923,2]
[407793800,1772805043572,-500.0,0.00023923,2]
[407793801,1772805043582,-250.0,0.00023923,2]
[407793802,1772805043591,-4000.0,0.00023923,2]
[407793803,1772805043600,-500.0,0.00023923,2]
[407793804,1772805043609,-250.0,0.00023923,2]
[407793805,1772805043619,-4000.0,0.00023923,2]
[407793806,1772805043629,-500.0,0.00023923,2]
[407793807,1772805043638,-250.0,0.00023923,2]
[407793808,1772805043647,-4000.0,0.00023923,2]
[407793809,1772805043656,-500.0,0.00023923,2]
[407793810,1772805043666,-250.0,0.00023923,2]
[407793811,1772805043675,-271.67882507,0.00023923,2]
[407793812,1772805043684,-4000.0,0.00023923,2]
[407793813,1772805043693,-500.0,0.00023923,2]
[407793814,1772805043703,-250.0,0.00023923,2]
[407793815,1772805043712,-4000.0,0.00023923,2]
[407793816,1772805043722,-250.0,0.00023923,2]
[407793817,1772805043731,-4000.0,0.00023923,2]
[407793818,1772805043740,-250.0,0.00023923,2]
[407793819,1772805043749,-4000.0,0.00023923,2]
[407793820,1772805043758,-250.0,0.00023923,2]
[407793821,1772805043766,-250.0,0.00023923,2]
[407793822,1772805043775,-250.0,0.00023923,2]
[407793823,1772805043785,-250.0,0.00023923,2]
[407793824,1772805043794,-250.0,0.00023923,2]
[407793825,1772805043803,-743.50770149,0.00023923,2]
[407793826,1772805043812,-1000.0,0.00023923,2]
[407793827,1772805043821,-1000.0,0.00023923,2]
[407793828,1772805043830,-1000.0,0.00023923,2]
[407793829,1772805043839,-1000.0,0.00023923,2]
[407793830,1772805043848,-1000.0,0.00023923,2]
[407793831,1772805043857,-578.20924308,0.00023923,2]
[407793832,1772805043866,-1000.0,0.00023923,2]
[407793833,1772805043874,-1000.0,0.00023923,2]
[407793834,1772805043884,-1000.0,0.00023923,2]
[407793835,1772805043897,-1000.0,0.00023923,2]
[407793836,1772805043906,-1000.0,0.00023923,2]
[407793837,1772805043915,-1000.0,0.00023923,2]
[407793838,1772805043924,-500.0,0.00023923,2]
[407793839,1772805043934,-500.0,0.00023923,2]
[407793840,1772805043943,-500.0,0.00023923,2]
[407793841,1772805043952,-500.0,0.00023923,2]
[407793842,1772805043964,-500.0,0.00023923,2]
[407793843,1772805043973,-500.0,0.00023923,2]
[407793844,1772805043982,-500.0,0.00023923,2]
[407793845,1772805043992,-500.0,0.00023923,2]
[407793846,1772805044001,-500.0,0.00023923,2]
[407793847,1772805044010,-693.3919763,0.00023923,2]
[407793848,1772805044019,-500.0,0.00023923,2]
[407793849,1772805044028,-500.0,0.00023923,2]
[407793850,1772805044037,-500.0,0.00023923,2]
[407793851,1772805044046,-500.0,0.00023923,2]
[407793852,1772805044055,-500.0,0.00023923,2]
[407793853,1772805044064,-500.0,0.00023923,2]
[407793854,1772805044073,-500.0,0.00023923,2]
[407793855,1772805044082,-500.0,0.00023923,2]
[407793856,1772805044091,-262.90206542,0.00023923,2]
[407793857,1772805044100,-500.0,0.00023923,2]
[407793858,1772805044109,-500.0,0.00023923,2]
[407793859,1772805044118,-500.0,0.00023923,2]
[407793860,1772805044128,-500.0,0.00023923,2]
[407793861,1772805044137,-500.0,0.00023923,2]
[407793862,1772805044146,-151.0,0.00023923,2]
[407793863,1772805044155,-269.917619,0.00023923,2]
[407793864,1772805044164,-151.0,0.00023923,2]
[407793865,1772805044174,-503.01170887,0.00023923,2]
[407793866,1772805044183,-500.0,0.00023973,2]
[407793867,1772805044192,-494.64624274,0.00023973,2]
[407793868,1772805044201,-235.21838039,0.00023973,2]
[407793869,1772805044211,-500.0,0.00023973,2]
[407793870,1772805044220,-719.04747942,0.00023978,2]
[407793871,1772805044229,-151.0,0.00023978,2]
[407793872,1772805044239,-5000.0,0.00024,7]
[407793873,1772805044248,-160.0,0.00024,7]
[407793874,1772805044257,-745.65223616,0.00024033,2]
[407793875,1772805044266,-151.0,0.00024033,2]
[407793876,1772805044275,-773.2413689,0.00024088,2]
[407793877,1772805044286,-151.0,0.00024088,2]
[407793878,1772805044296,-2000.0,0.00024112,2]
[407793879,1772805044306,-801.85129955,0.00024143,2]
[407793880,1772805044316,-151.0,0.00024143,2]
[407793881,1772805044325,-150.0,0.00024167,2]
[407793882,1772805044335,-706.42643953,0.00024167,2]
[407793883,1772805044344,-150.0,0.00024167,2]
[407793884,1772805044353,-17673.01857541,0.00024167,2]
[407793885,1772805044365,-150.0,0.00024167,2]
[407793886,1772805044375,-1565.90123891,0.00024167,2]
[407793887,1772805044385,-1500.0,0.00024187,2]
[407793888,1772805044395,-831.51979763,0.00024198,2]
[407793889,1772805044405,-151.0,0.00024198,2]
[407793890,1772805044415,-634.58548457,0.00024236,2]
[407793891,1772805044425,-1500.0,0.00024236,2]
[407793892,1772805044435,-862.28603014,0.00024253,2]
[407793893,1772805044445,-252.71125359,0.00024274,2]
[407793894,1772805044455,-894.19061326,0.00024308,2]
[407793895,1772805044466,-927.27566595,0.00024363,2]
[407793896,1772805044476,-961.58486559,0.00024418,2]
[407793897,1772805044486,-181.08010149,0.00024471,2]
[407793898,1772805044495,-272.62944185,0.00024471,2]
[407793899,1772805044505,-151.0,0.00024471,2]
[407793900,1772805044515,-279.9045709,0.00024471,2]
[407793901,1772805044524,-997.16350561,0.00024473,2]
[407793902,1772805044534,-270.08634337,0.00024479,2]
[407793903,1772805044544,-11400.34013754,0.00024513,2]
[407793904,1772805044553,-705.88057451,0.00024521,2]
[407793905,1772805044562,-1000.0,0.00024521,2]
[407793906,1772805044572,-174.93505616,0.0002463,2]
[407793907,1772805044581,-1000.0,0.00024658,2]
[407793908,1772805044591,-150.0,0.00024658,2]
[407793909,1772805044601,-2500.0,0.0002466,2]
[407793910,1772805044610,-2000.0,0.00024735,2]
[407793911,1772805044619,-153.25442737,0.00024746,2]
[407793912,1772805044629,-399.21,0.00024762,2]
[407793913,1772805044638,-1778.57186039,0.00024784,2]
[407793914,1772805044648,-162.31,0.00024857,2]
[407793915,1772805044658,-150.0,0.00024873,2]
[407793916,1772805044668,-441.81,0.00024885,2]
[407793917,1772805044677,-172.74325605,0.000249,3]
[407793918,1772805044687,-160.0,0.000249,3]
[407793919,1772805044696,-72694.8797742,0.000249,3]
[407793920,1772805044706,-219.68,0.00024918,2]
[407793921,1772805044716,-5000.0,0.00025,7]
[407793922,1772805044726,-160.0,0.00025,30]
[407793923,1772805044736,-187.78006525,0.00025019,2]
[407793924,1772805044745,-282.71673119,0.00025019,2]
[407793925,1772805044754,-151.0,0.00025019,2]
[407793926,1772805044764,-1057.2086331,0.00025068,2]
[407793927,1772805044773,-150.0,0.00025092,2]
[407793928,1772805044783,-150.0,0.00025092,2]
[407793929,1772805044792,-150.0,0.00025092,2]
[407793930,1772805044802,-150.0,0.00025092,2]
[407793931,1772805044811,-150.0,0.00025092,2]
[407793932,1772805044820,-150.0,0.00025092,2]
[407793933,1772805044830,-150.0,0.00025092,2]
[407793934,1772805044839,-150.0,0.00025092,2]
[407793935,1772805044848,-150.0,0.00025092,2]
[407793936,1772805044858,-150.0,0.00025092,2]
[407793937,1772805044867,-150.0,0.00025092,2]
[407793938,1772805044877,-150.0,0.00025092,2]
[407793939,1772805044889,-150.0,0.00025092,2]
[407793940,1772805044899,-160.519,0.00025092,2]
[407793941,1772805044908,-165.40867685,0.00025094,2]
[407793942,1772805044917,-3000.0,0.00025208,2]
[407793943,1772805044926,-1680.57628362,0.00025283,2]
[407793944,1772805044937,-571.0,0.00025332,10]
[407793945,1772805044946,-986.0,0.00025332,10]
[407793946,1772805044954,-161.01699525,0.00025418,2]
[407793947,1772805044964,-250.0,0.00025421,2]
[407793948,1772805044973,-1042.0,0.00025501,2]
[407793949,1772805044982,-751.844,0.00025501,2]
[407793950,1772805044991,-3502.0,0.00025501,2]
[407793951,1772805045001,-1341.0,0.00025501,2]
[407793952,1772805045010,-151.536,0.00025501,2]
[407793953,1772805045019,-1279.0,0.00025501,2]
[407793954,1772805045028,-1219.676,0.00025501,2]
[407793955,1772805045037,-922.0,0.00025501,2]
[407793956,1772805045046,-2459.0,0.00025501,2]
[407793957,1772805045054,-5990.0,0.00025501,2]
[407793958,1772805045064,-194.72792766,0.00025567,2]
[407793959,1772805045072,-262.90206542,0.00025567,2]
[407793960,1772805045081,-151.0,0.00025567,2]
[407793961,1772805045090,-172.74325605,0.000256,3]
[407793962,1772805045099,-160.0,0.000256,3]
[407793963,1772805045108,-200.0,0.00025703,7]
[407793964,1772805045117,-150.0,0.00025705,2]
[407793965,1772805045126,-1005.8377805,0.00025705,2]
[407793966,1772805045135,-399.21,0.00025753,2]
[407793967,1772805045144,-1088.87470879,0.00025756,2]
[407793968,1772805045153,-150.0,0.00025818,2]
[407793969,1772805045162,-161.12335235,0.00025818,2]
[407793970,1772805045171,-150.0,0.0002589,2]
[407793971,1772805045179,-350.0,0.00025968,2]
[407793972,1772805045189,-5000.0,0.00026,7]
[407793973,1772805045198,-153.25442737,0.00026049,2]
[407793974,1772805045207,-1208.66857289,0.00026063,2]
[407793975,1772805045216,-201.93286099,0.00026115,2]
[407793976,1772805045226,-151.0,0.00026115,2]
[407793977,1772805045235,-353.09,0.00026195,30]
[407793978,1772805045245,-500.0,0.00026243,120]
[407793979,1772805045254,-250.0,0.00026366,2]
[407793980,1772805045263,-450.0,0.00026516,2]
[407793981,1772805045272,-721.12765535,0.00026662,2]
[407793982,1772805045281,-1000.0,0.00026662,2]
[407793983,1772805045289,-599.60298507,0.00026662,2]
[407793984,1772805045298,-209.40437684,0.00026663,2]
[407793985,1772805045307,-151.0,0.00026663,2]
[407793986,1772805045316,-399.21,0.00026743,2]
[407793987,1772805045325,-999.34,0.000269,14]
[407793988,1772805045333,-350.0,0.00026914,2]
[407793989,1772805045343,-7739.501639,0.00026995,30]
[407793990,1772805045351,-5000.0,0.00027,7]
[407793991,1772805045360,-11400.34013754,0.00027018,2]
[407793992,1772805045369,-550.0,0.00027064,2]
[407793993,1772805045378,-150.0,0.00027185,2]
[407793994,1772805045387,-217.15233878,0.00027211,2]
[407793995,1772805045396,-151.0,0.00027211,2]
[407793996,1772805045406,-513.0,0.0002728,2]
[407793997,1772805045415,-153.25442737,0.00027351,2]
[407793998,1772805045424,-6731.040318,0.0002736,30]
[407793999,1772805045433,-150.0,0.00027369,2]
[407794000,1772805045442,-1040.45580562,0.00027397,120]
[407794001,1772805045451,-1000.0,0.00027397,20]
[407794002,1772805045460,-150.0,0.00027397,5]
[407794003,1772805045469,-160.40996513,0.00027397,5]
[407794004,1772805045479,-530.48508974,0.00027397,5]
[407794005,1772805045488,-4341.52,0.000274,7]
[407794006,1772805045497,-3567.05,0.000274,7]
[407794007,1772805045506,-727.0,0.00027458,2]
[407794008,1772805045516,-150.0,0.00027458,2]
[407794009,1772805045525,-150.0,0.00027458,2]
[407794010,1772805045534,-150.0,0.00027458,2]
[407794011,1772805045543,-150.0,0.00027458,2]
[407794012,1772805045552,-150.0,0.00027458,2]
[407794013,1772805045561,-150.0,0.00027458,2]
[407794014,1772805045570,-150.0,0.00027458,2]
[407794015,1772805045579,-238.0,0.00027458,2]
[407794016,1772805045588,-450.0,0.00027462,5]
[407794017,1772805045597,-251.79985854,0.00027612,5]
[407794018,1772805045606,-3605.914456,0.00027641,30]
[407794019,1772805045615,-3316.929274,0.00027641,30]
[407794020,1772805045624,-4100.5461151,0.00027657,17]
[407794021,1772805045633,-225.18697532,0.00027759,2]
[407794022,1772805045642,-151.0,0.00027759,2]
[407794023,1772805045651,-250.0,0.00027945,5]
[407794024,1772805045660,-5000.0,0.00028,7]
[407794025,1772805045670,-160.0,0.00028,10]
[407794026,1772805045679,-550.0,0.0002801,5]
[407794028,1772805045688,-270.51,0.00028069,2]
[407794029,1772805045698,-947.82132409,0.00028123,2]
[407794030,1772805045707,-233.51889341,0.00028307,2]
[407794031,1772805045716,-151.0,0.00028307,2]
[407794032,1772805045725,-180.39529822,0.00028439,2]
[407794033,1772805045734,-166.34,0.00028493,2]
[407794034,1772805045743,-480.49204324,0.00028493,5]
[407794035,1772805045752,-1042.0,0.00028501,2]
[407794036,1772805045760,-619.0,0.00028501,2]
[407794037,1772805045769,-3502.0,0.00028501,2]
[407794038,1772805045779,-1341.0,0.00028501,2]
[407794039,1772805045787,-150.0,0.00028501,2]
[407794040,1772805045796,-1279.0,0.00028501,2]
[407794041,1772805045805,-1212.0,0.00028501,2]
[407794042,1772805045814,-922.0,0.00028501,2]
[407794043,1772805045823,-5990.0,0.00028501,2]
[407794044,1772805045831,-150.0,0.00028544,2]
[407794045,1772805045840,-650.0,0.00028558,5]
[407794046,1772805045849,-153.25442737,0.00028654,2]
[407794047,1772805045858,-496.60968372,0.00028767,2]
[407794048,1772805045867,-242.15909246,0.00028855,2]
[407794049,1772805045876,-151.0,0.00028855,2]
[407794050,1772805045885,-351.25248798,0.00028974,2]
[407794051,1772805045896,-1000.0,0.00028985,2]
[407794052,1772805045905,-5000.0,0.00029,7]
[407794053,1772805045915,-2000.0,0.00029,2]
[407794054,1772805045924,-750.0,0.00029106,5]
[407794055,1772805045934,-1000.0,0.00029401,2]
[407794056,1772805045944,-437.76933228,0.00029401,2]
[407794057,1772805045953,-233.10896394,0.00029403,2]
[407794058,1772805045963,-151.0,0.00029403,2]
[407794059,1772805045974,-11400.34013754,0.00029524,2]
[407794060,1772805045983,-850.0,0.00029654,5]
[407794061,1772805045993,-500.0,0.00029671,2]
[407794062,1772805046003,-150.0,0.00029723,7]
[407794063,1772805046012,-195.0,0.00029723,7]
[407794064,1772805046021,-1857.0,0.0002979,5]
[407794065,1772805046031,-2873.0,0.0002979,5]
[407794066,1772805046040,-3567.05,0.000298,7]
[407794067,1772805046050,-151.0,0.00029951,2]
[407794068,1772805046059,-153.25442737,0.00029956,2]
[407794069,1772805046068,-150.0,0.00029971,2]
[407794070,1772805046078,-5000.0,0.0003,7]
[407794072,1772805046087,-20000.0,0.0003,7]
[407794074,1772805046097,-1000.0,0.0003,30]
[407794076,1772805046106,-1219.30618,0.0003,120]
[407794078,1772805046115,-500.0,0.00030147,2]
[407794080,1772805046125,-950.0,0.00030202,5]
[407794082,1772805046135,-200.0,0.00030232,15]
[407794084,1772805046144,-353.09,0.00030391,60]
[407794086,1772805046154,-165.40867685,0.00030396,2]
[407794088,1772805046163,-309.42125143,0.00030405,2]
[407794090,1772805046172,-151.0,0.00030499,2]
[407794092,1772805046182,-571.0,0.000305,16]
[407794109,1772805046424,-160.7092941,0.0003075,5]
[407794110,1772805046443,-161.01699525,0.00030832,2]
[407794111,1772805046453,-151.0,0.00031047,2]
[407794112,1772805046463,-153.25442745,0.00031259,2]
[407794113,1772805046473,-150.0,0.0003147,2]
[407794114,1772805046488,-4341.52,0.000315,7]
[407794115,1772805046498,-1042.0,0.00031501,2]
[407794116,1772805046509,-619.0,0.00031501,2]
[407794117,1772805046519,-3502.0,0.00031501,2]
[407794118,1772805046530,-1341.0,0.00031501,2]
[407794119,1772805046541,-150.0,0.00031501,2]
[407794120,1772805046550,-1279.0,0.00031501,2]
[407794121,1772805046560,-1212.0,0.00031501,2]
[407794122,1772805046571,-5990.0,0.00031501,2]
[407794123,1772805046582,-151.0,0.00031595,2]
[407794124,1772805046592,-171.0,0.00031642,30]
[407794125,1772805046603,-500.0,0.00031767,2]
[407794126,1772805046614,-500.0,0.00031767,2]
[407794127,1772805046625,-500.0,0.00031767,2]
[407794128,1772805046636,-500.0,0.00031767,2]
[407794129,1772805046646,-214.68428333,0.00031767,2]
[407794130,1772805046655,-150.0,0.00031767,2]
[407794131,1772805046666,-500.0,0.00031767,2]
[407794132,1772805046676,-500.0,0.00031767,2]
[407794133,1772805046686,-500.0,0.00031767,2]
[407794134,1772805046696,-500.0,0.00031767,2]
[407794135,1772805046705,-500.0,0.00031767,2]
[407794136,1772805046715,-150.0,0.00031767,2]
[407794137,1772805046732,-150.0,0.00031767,2]
[407794138,1772805046744,-500.0,0.00031767,2]
[407794139,1772805046754,-150.0,0.00031767,2]
[407794140,1772805046764,-500.0,0.00031767,2]
[407794141,1772805046774,-150.0,0.00031767,2]
[407794142,1772805046784,-500.0,0.00031767,2]
[407794143,1772805046793,-150.0,0.00031767,2]
[407794144,1772805046802,-150.0,0.00031767,2]
[407794145,1772805046812,-150.0,0.00031767,2]
[407794146,1772805046822,-500.0,0.00031767,2]
[407794147,1772805046833,-500.0,0.00031767,2]
[407794148,1772805046842,-994.0,0.00031767,2]
[407794149,1772805046854,-500.0,0.00031767,2]
[407794150,1772805046864,-500.0,0.00031767,2]
[407794151,1772805046874,-500.0,0.00031767,2]
[407794152,1772805046887,-500.0,0.00031767,2]
[407794153,1772805046897,-524.0,0.00031767,2]
[407794154,1772805046906,-999.0,0.00031767,2]
[407794155,1772805046915,-500.0,0.00031767,2]
[407794156,1772805046925,-150.0,0.00031767,2]
[407794157,1772805046935,-964.0,0.00031767,2]
[407794158,1772805046944,-500.0,0.00031767,2]
[407794159,1772805046953,-2000.0,0.00031767,120]
[407794160,1772805046965,-2000.0,0.00031767,120]
[407794161,1772805046980,-250.10563081,0.0003184,2]
[407794162,1772805046991,-150.0,0.00031846,14]
[407794163,1772805047000,-152.0,0.00031846,14]
[407794164,1772805047010,-160559.0,0.0003185,20]
[407794165,1772805047020,-1033.93,0.00032,120]
[407794166,1772805047030,-11400.34013754,0.00032029,2]
[407794167,1772805047039,-500.0,0.00032041,2]
[407794168,1772805047049,-500.0,0.00032041,2]
[407794169,1772805047059,-500.0,0.00032041,2]
[407794170,1772805047068,-500.0,0.00032041,2]
[407794171,1772805047077,-150.0,0.00032041,2]
[407794172,1772805047086,-500.0,0.00032041,2]